bitfinex/quotes_SOLUSD_20240713
["timestamp","ask_amount","ask_price","bid_price","bid_amount"]
[1720839948394,45.0,139.57,139.55,11.63]
[1720839955803,45.0,139.57,139.56,11.63]
[1720839956211,0.0721124,139.6,139.56,11.63]
[1720839956508,45.0721124,139.6,139.57,11.63]
[1720839956813,0.0721124,139.6,139.57,11.63]
[1720839957790,0.0721124,139.6,139.58,11.63]
[1720839957994,45.0721124,139.6,139.58,11.63]
[1720839961014,45.0721124,139.6,139.54,22.213]
[1720839961015,0.0721124,139.6,139.54,22.213]
[1720839961207,0.0721124,139.6,139.59,11.63]
[1720839962812,0.0721124,139.6,139.59,31.63]
[1720839963908,1.24e-05,139.6,139.59,31.63]
[1720839964109,0.04261087,139.61,139.59,59.6887]
[1720839964312,0.04261087,139.61,139.6,43.26]
[1720839964717,0.04261087,139.61,139.6,44.68849007]
[1720839965220,0.04261087,139.61,139.6,21.42849007]
[1720839965407,0.04261087,139.61,139.6,44.68849007]
[1720839967726,0.04261087,139.61,139.6,20.0]
[1720839968102,0.04261087,139.61,139.6,43.26]
[1720839968320,0.04261087,139.61,139.6,44.18421423]
[1720839968704,0.04261087,139.61,139.6,20.92421423]
[1720839968899,0.04261087,139.61,139.6,43.26]
[1720839969629,0.04261087,139.61,139.6,20.0]
[1720839969826,0.04261087,139.61,139.6,31.63]
[1720839970220,0.04261087,139.61,139.57,0.92567603]
[1720839970428,0.04261087,139.61,139.6,11.63]
[1720839970614,0.04261087,139.61,139.6,20.0]
[1720839970814,0.04261087,139.61,139.6,31.63]
[1720839976435,0.04261087,139.61,139.6,20.0]
[1720839976632,0.04261087,139.61,139.6,11.63]
[1720839976834,0.04261087,139.61,139.6,31.63]
[1720839980542,0.04261087,139.61,139.6,78.15]
[1720839981221,0.04261087,139.61,139.6,31.63]
[1720839981822,0.04261087,139.61,139.6,20.0]
[1720839982043,0.04261087,139.61,139.6,11.63]
[1720839982243,0.04261087,139.61,139.6,31.63]
[1720839982818,0.04261087,139.61,139.6,78.15]
[1720839987448,0.04261087,139.61,139.6,31.63]
[1720839995758,0.04261087,139.61,139.6,20.0]
[1720839996351,0.04261087,139.61,139.6,31.63]
[1720840014583,0.04261087,139.61,139.56,1.02668673]
[1720840014979,0.04261087,139.61,139.6,11.63]
[1720840015983,0.04261087,139.61,139.59,11.63]
[1720840018293,0.04261087,139.61,139.6,11.63]
[1720840019099,0.04261087,139.61,139.56,1.02668673]
[1720840019310,0.04261087,139.61,139.6,11.63]
[1720840019502,0.04261087,139.61,139.59,11.63]
[1720840021900,0.04261087,139.61,139.6,11.63]
[1720840022807,0.04261087,139.61,139.59,11.63]
[1720840023791,0.04261087,139.61,139.54,15.51071127]
[1720840023792,0.04261087,139.61,139.6,11.63]
[1720840034011,0.04261087,139.61,139.6,31.63]
[1720840037698,0.04261087,139.61,139.6,33.28705803]
[1720840040711,0.04261087,139.61,139.6,21.65705803]
[1720840040933,0.04261087,139.61,139.6,13.28705803]
[1720840041224,0.04261087,139.61,139.6,21.65705803]
[1720840041416,0.04261087,139.61,139.6,33.28705803]
[1720840043028,0.04261087,139.61,139.6,21.65705803]
[1720840043206,0.04261087,139.61,139.6,13.28705803]
[1720840043405,0.04261087,139.61,139.6,33.28705803]
[1720840046213,0.04261087,139.61,139.6,31.63]
[1720840056517,0.04261087,139.61,139.6,20.0]
[1720840056735,0.04261087,139.61,139.6,11.63]
[1720840056921,0.04261087,139.61,139.6,31.63]
[1720840063440,0.04261087,139.61,139.6,20.0]
[1720840063742,0.04261087,139.61,139.6,11.63]
[1720840063945,0.04261087,139.61,139.6,31.63]
[1720840066050,0.04261087,139.61,139.6,20.0]
[1720840066240,0.04261087,139.61,139.6,11.63]
[1720840066432,0.04261087,139.61,139.6,31.63]
[1720840073634,0.04261087,139.61,139.6,11.63]
[1720840073942,0.04261087,139.61,139.6,31.63]
[1720840076853,0.04261087,139.61,139.57,1.18719905]
[1720840077059,0.04261087,139.61,139.6,11.63]
[1720840082860,0.04261087,139.61,139.58,0.90283943]
[1720840083044,0.04261087,139.61,139.6,11.63]
[1720840084049,0.04261087,139.61,139.58,0.90283943]
[1720840084356,0.04261087,139.61,139.6,11.63]
[1720840086455,0.04261087,139.61,139.57,20.0]
[1720840086762,0.04261087,139.61,139.6,11.63]
[1720840092951,0.04261087,139.61,139.6,13.28705803]
[1720840093369,0.04261087,139.61,139.6,1.65705803]
[1720840093551,0.04261087,139.61,139.6,14.71904229]
[1720840096549,0.04261087,139.61,139.6,13.28705803]
[1720840096955,0.04261087,139.61,139.6,79.80705803]
[1720840099868,0.04261087,139.61,139.6,124.80705803]
[1720840100167,0.04261087,139.61,139.6,126.2389484]
[1720840105172,0.04261087,139.61,139.6,124.80705803]
[1720840105499,0.04261087,139.61,139.6,79.80705803]
[1720840106797,6.4178,139.66,139.6,124.80705803]
[1720840106971,6.4178,139.66,139.61,21.43205501]
[1720840107291,6.4178,139.66,139.65,11.63]
[1720840109969,15.2689,139.68,139.65,11.63]
[1720840111264,6.2845,139.69,139.67,11.63]
[1720840111686,0.2,139.69,139.67,11.63]
[1720840112088,0.2,139.69,139.68,11.63]
[1720840112800,0.2,139.69,139.62,1.43123478]
[1720840112996,0.2,139.69,139.68,11.63]
[1720840114505,0.2,139.69,139.63,3.08773179]
[1720840114680,0.2,139.69,139.67,11.63]
[1720840114996,0.2,139.69,139.63,1.656702]
[1720840115700,0.2,139.69,139.66,11.63]
[1720840117604,0.2,139.69,139.63,1.656702]
[1720840117899,0.2,139.69,139.66,11.63]
[1720840119802,0.2,139.69,139.63,2.80751402]
[1720840120128,0.2,139.69,139.66,11.63]
[1720840120298,0.2,139.69,139.65,11.63]
[1720840121606,0.2,139.69,139.66,11.63]
[1720840122809,0.2,139.69,139.65,11.63]
[1720840123204,0.2,139.69,139.63,1.656702]
[1720840123403,0.2,139.69,139.65,11.63]
[1720840123995,0.2,139.69,139.66,11.63]
[1720840131807,0.2,139.69,139.67,11.63]
[1720840134834,0.2,139.69,139.68,11.63]
[1720840135529,0.2,139.69,139.67,11.63]
[1720840135698,0.2,139.69,139.66,11.63]
[1720840143413,0.2,139.69,139.63,1.656702]
[1720840143623,15.3814,139.67,139.63,1.656702]
[1720840143810,27.0114,139.67,139.63,1.656702]
[1720840144010,56.63,139.66,139.63,1.656702]
[1720840144232,56.63,139.66,139.61,11.63]
[1720840144409,56.63,139.66,139.6,11.63]
[1720840144606,11.63,139.65,139.6,11.63]
[1720840149932,45.0,139.66,139.6,11.63]
[1720840150141,27.0114,139.67,139.62,11.63]
[1720840150318,15.3814,139.67,139.62,11.63]
[1720840150519,27.0114,139.67,139.62,11.63]
[1720840152555,27.0114,139.67,139.56,17.99384218]
[1720840152726,27.0114,139.67,139.62,11.63]
[1720840153235,27.0114,139.67,139.61,11.63]
[1720840154813,26.7714,139.67,139.61,11.63]
[1720840155429,26.7714,139.67,139.62,11.63]
[1720840157245,11.63,139.66,139.56,15.1305]
[1720840157535,56.63,139.65,139.6,11.63]
[1720840159443,15.3814,139.63,139.55,2.87573066]
[1720840159743,15.3814,139.63,139.59,11.63]
[1720840160624,15.3814,139.63,139.6,11.63]
[1720840164043,15.3814,139.63,139.61,11.63]
[1720840172363,15.3814,139.63,139.6,11.63]
[1720840174853,15.3814,139.63,139.53,31.63978205]
[1720840175159,15.3814,139.63,139.54,66.65777054]
[1720840175354,15.3814,139.63,139.59,11.63]
[1720840175552,15.3814,139.63,139.6,11.63]
[1720840178163,15.3814,139.63,139.55,1.65765174]
[1720840178459,15.3814,139.63,139.6,11.63]
[1720840180145,15.3814,139.63,139.55,1.65765174]
[1720840180341,15.3814,139.63,139.59,11.63]
[1720840181637,15.3814,139.63,139.55,1.65765174]
[1720840181839,27.0114,139.63,139.58,11.63]
[1720840184441,15.3814,139.63,139.59,11.63]
[1720840185862,27.0114,139.63,139.58,11.63]
[1720840187642,27.0114,139.63,139.55,1.65765174]
[1720840187850,45.0,139.62,139.57,11.63]
[1720840188055,56.63,139.62,139.57,11.63]
[1720840188262,11.63,139.61,139.56,11.63]
[1720840188646,6.3682,139.6,139.56,11.63]
[1720840190954,15.3274,139.59,139.55,1.65765174]
[1720840191146,11.63,139.58,139.53,11.63]
[1720840191550,11.63,139.58,139.46,22.7644]
[1720840191775,11.63,139.58,139.53,11.63]
[1720840196273,15.3274,139.59,139.49,1.65836476]
[1720840196470,15.3274,139.59,139.55,11.63]
[1720840198267,15.3274,139.59,139.56,11.63]
[1720840198869,15.3274,139.59,139.57,11.63]
[1720840202185,15.3274,139.59,139.56,11.63]
[1720840205286,6.3682,139.6,139.58,11.63]
[1720840209189,34.1893,139.63,139.58,11.63]
[1720840213080,39.2025,139.63,139.58,11.63]
[1720840213276,45.0,139.62,139.57,11.63]
[1720840213584,56.63,139.62,139.57,11.63]
[1720840214795,27.5725,139.63,139.58,11.63]
[1720840214796,22.5593,139.63,139.58,11.63]
[1720840215000,22.5593,139.63,139.6,11.63]
[1720840217700,16.2492,139.63,139.6,11.63]
[1720840222291,5.0123,139.66,139.6,11.63]
[1720840222491,76.63,139.65,139.6,11.63]
[1720840222697,81.6425,139.65,139.6,11.63]
[1720840222891,11.63,139.64,139.59,11.63]
[1720840225582,45.0,139.63,139.54,16.2233]
[1720840225790,45.0,139.63,139.59,11.63]
[1720840227187,45.0,139.63,139.6,11.63]
[1720840227510,45.0,139.64,139.6,11.63]
[1720840230413,56.63,139.64,139.59,11.63]
[1720840233495,61.6429,139.64,139.59,11.63]
[1720840236198,15.4834,139.62,139.54,16.2233]
[1720840236396,56.63,139.61,139.55,20.0]
[1720840236690,56.63,139.61,139.56,11.63]
[1720840236901,56.63,139.61,139.57,11.63]
[1720840237634,45.0,139.61,139.57,11.63]
[1720840238523,45.0,139.61,139.58,11.63]
[1720840242534,45.0,139.61,139.55,20.0]
[1720840242720,45.0,139.61,139.58,11.63]
[1720840242914,45.0,139.61,139.57,11.63]
[1720840243808,45.0,139.61,139.51,9.4998307]
[1720840244027,45.0,139.61,139.5,15.1656]
[1720840244028,36.6443,139.6,139.5,15.1656]
[1720840244238,36.6443,139.6,139.54,11.63]
[1720840244239,68.2354,139.59,139.54,11.63]
[1720840244414,26.9965,139.58,139.53,11.63]
[1720840244615,26.9965,139.58,139.48,6.5229]
[1720840244816,45.0,139.57,139.53,11.63]
[1720840245523,45.0,139.57,139.52,11.63]
[1720840246242,56.63,139.57,139.52,11.63]
[1720840246446,15.3665,139.58,139.54,11.63]
[1720840246652,15.3665,139.58,139.55,11.63]
[1720840248530,15.3665,139.58,139.48,6.5229]
[1720840248733,15.3665,139.58,139.55,11.63]
[1720840251018,26.9965,139.58,139.49,1.65836476]
[1720840251227,32.0115,139.58,139.52,11.63]
[1720840251424,32.0115,139.58,139.49,1.65836476]
[1720840251625,32.0115,139.58,139.49,21.65836476]
[1720840251626,45.0,139.57,139.49,21.65836476]
[1720840251917,56.63,139.57,139.51,11.63]
[1720840252145,5.0181,139.5,139.45,7.49178407]
[1720840252322,18.2207,139.53,139.48,11.63]
[1720840252522,18.2207,139.53,139.44,11.63]
[1720840252523,20.0,139.52,139.5,11.63]
[1720840253153,6.5907,139.53,139.5,11.63]
[1720840253336,6.5907,139.53,139.44,46.52]
[1720840253547,6.5907,139.53,139.4,7.49099857]
[1720840253548,11.6075,139.53,139.45,20.0]
[1720840253855,11.6075,139.53,139.49,11.63]
[1720840254729,5.0174,139.52,139.41,20.0]
[1720840255057,5.0174,139.52,139.48,11.63]
[1720840255235,5.0174,139.52,139.44,46.52]
[1720840255236,18.2207,139.53,139.41,20.0]
[1720840255435,50.0174,139.52,139.47,11.63]
[1720840255635,45.0,139.52,139.47,11.63]
[1720840256353,45.0,139.52,139.48,11.63]
[1720840256734,45.0,139.52,139.39,20.0]
[1720840257039,50.0172,139.52,139.47,11.63]
[1720840257338,61.6472,139.52,139.47,11.63]
[1720840257667,16.6476,139.51,139.4,45.0]
[1720840257858,5.0179,139.5,139.46,11.63]
[1720840258033,16.6475,139.51,139.46,11.63]
[1720840258356,45.0,139.5,139.46,11.63]
[1720840259345,11.63,139.51,139.46,11.63]
[1720840259552,16.6473,139.52,139.46,11.63]
[1720840259852,65.0,139.51,139.46,11.63]
[1720840260643,45.0,139.51,139.46,11.63]
[1720840261060,11.63,139.51,139.46,11.63]
[1720840263452,50.0179,139.5,139.4,45.0]
[1720840263640,45.0,139.5,139.46,11.63]
[1720840264162,56.63,139.5,139.45,11.63]
[1720840265075,5.0173,139.52,139.45,11.63]
[1720840265242,76.63,139.51,139.46,11.63]
[1720840266465,11.63,139.5,139.45,11.63]
[1720840270376,65.0,139.51,139.46,11.63]
[1720840270565,31.63,139.51,139.46,11.63]
[1720840270763,11.63,139.5,139.45,11.63]
[1720840271087,31.63,139.51,139.46,11.63]
[1720840271459,31.63,139.51,139.45,11.63]
[1720840271460,36.6475,139.51,139.45,11.63]
[1720840271675,11.63,139.5,139.45,11.63]
[1720840275388,25.0175,139.51,139.45,11.63]
[1720840275569,11.63,139.5,139.45,11.63]
[1720840275766,11.63,139.5,139.4,47.90276991]
[1720840275971,20.0,139.51,139.45,11.63]
[1720840276175,16.6479,139.5,139.45,11.63]
[1720840276792,16.6479,139.5,139.41,20.0]
[1720840276995,16.6479,139.5,139.45,11.63]
[1720840278674,5.0182,139.49,139.45,11.63]
[1720840278995,11.63,139.49,139.44,11.63]
[1720840280291,5.0181,139.5,139.44,11.63]
[1720840280597,11.63,139.49,139.44,11.63]
[1720840281989,16.6489,139.48,139.42,1.65919739]
[1720840282193,16.6489,139.48,139.43,11.63]
[1720840282491,16.6489,139.48,139.42,13.28919739]
[1720840283370,11.63,139.48,139.42,13.28919739]
[1720840283571,5.0184,139.49,139.42,13.28919739]
[1720840283774,11.63,139.48,139.43,11.63]
[1720840293886,5.018,139.5,139.43,13.0630762]
[1720840294086,56.63,139.49,139.43,13.0630762]
[1720840296409,11.63,139.48,139.43,13.0630762]
[1720840297709,11.63,139.48,139.42,1.65919739]
[1720840297912,11.63,139.48,139.43,13.0630762]
[1720840299414,11.63,139.48,139.42,3.09227359]
[1720840299705,11.63,139.48,139.43,13.06297341]
[1720840301106,11.63,139.48,139.43,11.63]
[1720840302107,5.0175,139.51,139.44,1.43309328]
[1720840302295,31.63,139.5,139.44,13.06309328]
[1720840302893,11.63,139.49,139.44,13.06309328]
[1720840303093,20.0,139.48,139.44,13.06309328]
[1720840306425,20.0,139.48,139.44,11.63]
[1720840306614,31.63,139.49,139.44,11.63]
[1720840306808,5.0172,139.52,139.45,11.63]
[1720840306999,11.63,139.51,139.46,11.63]
[1720840307908,5.0172,139.52,139.46,11.63]
[1720840308225,16.6472,139.52,139.47,11.63]
[1720840308399,20.0,139.51,139.47,11.63]
[1720840308599,25.0175,139.51,139.47,11.63]
[1720840310819,20.0,139.51,139.47,11.63]
[1720840311037,20.0,139.51,139.48,13.06202054]
[1720840311323,31.63,139.52,139.47,11.63]
[1720840311524,36.6474,139.52,139.47,11.63]
[1720840313028,16.6474,139.52,139.47,11.63]
[1720840317602,11.63,139.52,139.47,11.63]
[1720840317808,16.6469,139.53,139.48,11.63]
[1720840318008,5.0169,139.53,139.48,11.63]
[1720840318312,16.6469,139.53,139.48,11.63]
[1720840318528,5.0169,139.53,139.49,11.63]
[1720840318708,5.0169,139.53,139.48,11.63]
[1720840319727,16.6462,139.55,139.49,1.43167747]
[1720840320040,16.6462,139.55,139.5,11.63]
[1720840326327,5.0162,139.55,139.5,11.63]
[1720840329622,5.0162,139.55,139.51,11.63]
[1720840340358,5.0166,139.54,139.5,11.63]
[1720840341259,5.0162,139.55,139.5,11.63]
[1720840341867,5.0167,139.54,139.48,16.0361]
[1720840342050,5.0167,139.54,139.49,11.63]
[1720840342229,5.0167,139.54,139.5,11.63]
[1720840342627,16.6462,139.55,139.5,11.63]
[1720840344960,11.63,139.55,139.5,11.63]
[1720840345661,16.6459,139.56,139.5,11.63]
[1720840346155,39.4787,139.57,139.51,11.63]
[1720840346365,45.0,139.56,139.51,11.63]
[1720840346770,50.0158,139.56,139.51,11.63]
[1720840347072,61.6458,139.56,139.51,11.63]
[1720840352185,61.6458,139.56,139.48,16.0361]
[1720840352371,61.6458,139.56,139.51,11.63]
[1720840355167,5.0165,139.54,139.48,16.0361]
[1720840355366,11.63,139.55,139.5,11.63]
[1720840355978,16.6462,139.55,139.5,11.63]
[1720840356365,5.0162,139.55,139.51,11.63]
[1720840357173,5.0162,139.55,139.46,6.5682]
[1720840357356,5.0162,139.55,139.49,11.63]
[1720840357357,16.6462,139.55,139.49,11.63]
[1720840357760,16.6462,139.55,139.5,11.63]
[1720840357959,5.0165,139.54,139.45,15.436]
[1720840358163,61.6465,139.54,139.49,11.63]
[1720840358360,5.0165,139.54,139.48,11.63]
[1720840358576,11.63,139.53,139.48,11.63]
[1720840358787,11.63,139.54,139.49,11.63]
[1720840360467,5.0162,139.55,139.49,11.63]
[1720840360686,45.0,139.54,139.49,11.63]
[1720840368766,45.0,139.54,139.5,11.63]
[1720840368967,45.0,139.54,139.49,11.63]
[1720840370590,56.63,139.54,139.45,15.436]
[1720840370881,56.63,139.54,139.43,7.48365685]
[1720840370882,33.1732,139.52,139.43,7.48365685]
[1720840371090,33.1732,139.52,139.46,11.63]
[1720840372890,33.1732,139.52,139.47,11.63]
[1720840373464,21.5432,139.52,139.47,11.63]
[1720840374296,21.5432,139.52,139.42,7.84769739]
[1720840374481,21.5432,139.52,139.47,11.63]
[1720840375292,33.1732,139.52,139.47,11.63]
[1720840375706,33.1732,139.52,139.43,20.0]
[1720840375903,33.1732,139.52,139.47,11.63]
[1720840376070,38.1904,139.52,139.47,11.63]
[1720840377666,38.1904,139.52,139.43,20.0]
[1720840377868,38.1904,139.52,139.47,11.63]
[1720840378385,11.63,139.51,139.46,11.63]
[1720840379993,16.6475,139.51,139.46,11.63]
[1720840380190,11.63,139.51,139.42,1.65919739]
[1720840380381,61.6479,139.5,139.45,11.63]
[1720840381882,56.63,139.5,139.45,11.63]
[1720840383996,61.648,139.5,139.42,1.65919739]
[1720840384198,61.648,139.5,139.45,11.63]
[1720840385274,56.63,139.5,139.45,11.63]
[1720840388997,45.0,139.5,139.45,11.63]
[1720840392177,50.0179,139.5,139.45,11.63]
[1720840393603,16.6477,139.51,139.46,11.63]
[1720840394203,16.6477,139.51,139.45,11.63]
[1720840394902,21.5432,139.52,139.46,13.06190539]
[1720840395105,38.1904,139.52,139.46,11.63]
[1720840398903,21.5432,139.52,139.47,13.06139205]
[1720840399082,21.5432,139.52,139.47,11.63]
[1720840399285,21.5432,139.52,139.48,11.63]
[1720840399486,21.5432,139.52,139.47,11.63]
[1720840400008,26.5604,139.52,139.47,11.63]
[1720840400208,38.1904,139.52,139.47,11.63]
[1720840402713,38.1904,139.52,139.45,1.43377724]
[1720840402897,38.1904,139.52,139.47,11.63]
[1720840407615,26.5604,139.52,139.47,11.63]
[1720840408306,21.5432,139.52,139.47,11.63]
[1720840408492,21.5432,139.52,139.43,1.43377858]
[1720840408692,21.5432,139.52,139.48,11.63]
[1720840409213,26.5605,139.52,139.48,11.63]
[1720840413612,26.5605,139.52,139.45,1.43357294]
[1720840413818,26.5605,139.52,139.48,11.63]
[1720840414320,26.5605,139.52,139.45,1.43336733]
[1720840414524,26.5605,139.52,139.48,11.63]
[1720840415919,26.5605,139.52,139.46,1.4332646]
[1720840416128,26.5605,139.52,139.48,11.63]
[1720840419544,26.5604,139.52,139.48,11.63]
[1720840422237,26.5604,139.52,139.44,1.43326465]
[1720840422440,26.5604,139.52,139.47,11.63]
[1720840423242,26.5604,139.52,139.48,11.63]
[1720840423636,5.0163,139.55,139.49,13.06378737]
[1720840423822,16.6463,139.55,139.5,11.63]
[1720840424722,5.0165,139.54,139.5,11.63]
[1720840424924,5.0165,139.54,139.49,11.63]
[1720840429029,5.0165,139.54,139.5,11.63]
[1720840446863,16.6462,139.55,139.5,11.63]
[1720840454249,22.3385,139.56,139.5,11.63]
[1720840454456,22.3385,139.56,139.52,11.63]
[1720840454771,22.3385,139.56,139.47,1.43357509]
[1720840454772,22.3385,139.56,139.51,11.63]
[1720840454969,33.9685,139.56,139.51,11.63]
[1720840455554,33.9685,139.56,139.47,1.43357509]
[1720840455751,5.0161,139.55,139.51,11.63]
[1720840456166,38.9843,139.56,139.51,11.63]
[1720840456368,38.9843,139.56,139.5,11.63]
[1720840461074,38.9843,139.56,139.51,11.63]
[1720840461687,56.63,139.55,139.5,11.63]
[1720840461898,56.63,139.55,139.45,1.4337013]
[1720840462071,56.63,139.55,139.49,11.63]
[1720840462267,5.0165,139.54,139.46,1.43369391]
[1720840462466,5.0165,139.54,139.5,11.63]
[1720840469293,45.0,139.55,139.5,11.63]
[1720840469476,33.9685,139.56,139.51,11.63]
[1720840470099,38.9844,139.56,139.51,11.63]
[1720840470408,38.9844,139.56,139.5,11.63]
[1720840472413,5.0161,139.55,139.5,11.63]
[1720840474415,16.6461,139.55,139.49,11.63]
[1720840475588,16.6461,139.55,139.45,20.0]
[1720840475908,16.6461,139.55,139.49,11.63]
[1720840478389,16.6461,139.55,139.44,20.0]
[1720840478591,16.6461,139.55,139.49,11.63]
[1720840480523,11.63,139.55,139.49,11.63]
[1720840484022,11.63,139.55,139.5,11.63]
[1720840485222,16.6461,139.55,139.5,11.63]
[1720840485415,16.6461,139.55,139.49,11.63]
[1720840488610,16.6461,139.55,139.44,20.0]
[1720840488807,56.63,139.54,139.44,66.52]
[1720840489008,56.63,139.54,139.48,11.63]
[1720840489328,11.63,139.53,139.48,11.63]
[1720840489819,11.63,139.53,139.44,20.0]
[1720840490026,11.63,139.53,139.48,11.63]
[1720840491821,56.63,139.54,139.49,11.63]
[1720840493614,56.63,139.54,139.44,20.0]
[1720840493820,56.63,139.54,139.49,11.63]
[1720840494534,21.289,139.53,139.43,23.2177]
[1720840494743,21.289,139.53,139.43,16.0317]
[1720840494744,56.63,139.52,139.43,16.0317]
[1720840494936,56.63,139.52,139.47,11.63]
[1720840497342,32.919,139.53,139.48,11.63]
[1720840500021,11.63,139.52,139.43,16.0317]
[1720840500224,11.63,139.52,139.47,11.63]
[1720840502049,11.63,139.51,139.42,1.65919739]
[1720840502233,11.63,139.51,139.46,11.63]
[1720840508861,11.63,139.51,139.46,11.63]
[1720840513149,11.63,139.51,139.42,7.186]
[1720840513329,15.2592,139.49,139.43,20.0]
[1720840513530,15.2592,139.49,139.45,11.63]
[1720840514030,21.8661,139.49,139.45,11.63]
[1720840516848,21.8661,139.49,139.46,11.63]
[1720840519044,21.8661,139.49,139.45,11.63]
[1720840519254,21.8661,139.49,139.43,20.0]
[1720840519461,21.8661,139.49,139.41,20.0]
[1720840519754,21.8661,139.49,139.45,11.63]
[1720840520952,11.63,139.48,139.4,16.4583]
[1720840521151,21.8661,139.49,139.43,11.63]
[1720840521345,33.4961,139.49,139.43,11.63]
[1720840521545,11.63,139.48,139.43,11.63]
[1720840522661,11.63,139.47,139.42,11.63]
[1720840523850,21.8661,139.49,139.43,11.63]
[1720840524157,56.63,139.48,139.43,11.63]
[1720840525456,45.0,139.48,139.43,11.63]
[1720840525652,21.8661,139.49,139.43,11.63]
[1720840525855,11.63,139.48,139.43,11.63]
[1720840530546,21.8661,139.49,139.43,11.63]
[1720840530752,33.4961,139.49,139.44,11.63]
[1720840531744,21.8661,139.49,139.44,11.63]
[1720840532359,33.4961,139.49,139.44,11.63]
[1720840532557,21.8661,139.49,139.44,11.63]
[1720840532751,33.4961,139.49,139.37,19.36497267]
[1720840532962,33.4961,139.49,139.43,11.63]
[1720840533669,38.5143,139.49,139.43,11.63]
[1720840536177,11.63,139.48,139.43,11.63]
[1720840536371,34.0828,139.47,139.37,19.36497267]
[1720840536560,34.0828,139.47,139.42,11.63]
[1720840537272,39.1018,139.47,139.42,11.63]
[1720840538078,39.1018,139.47,139.38,45.0]
[1720840538264,34.0828,139.47,139.44,5.02]
[1720840539082,39.1018,139.47,139.43,5.0202]
[1720840539870,27.4718,139.47,139.43,16.6502]
[1720840540271,27.4718,139.47,139.43,5.0202]
[1720840540481,27.4718,139.47,139.43,16.6502]
[1720840541982,27.4718,139.47,139.43,5.0202]
[1720840542360,22.4528,139.47,139.44,5.02]
[1720840542577,22.4528,139.47,139.43,11.63]
[1720840542764,22.4528,139.47,139.45,5.0196]
[1720840543170,22.4528,139.47,139.44,5.0199]
[1720840547584,27.4718,139.47,139.44,5.0199]
[1720840553291,22.4528,139.47,139.44,5.0199]
[1720840553582,27.4718,139.47,139.44,5.0199]
[1720840555384,27.4718,139.47,139.43,16.6503]
[1720840555589,5.0194,139.46,139.42,5.0205]
[1720840555781,5.0194,139.46,139.43,5.0204]
[1720840556292,39.1018,139.47,139.43,5.0204]
[1720840558488,34.0828,139.47,139.44,5.0199]
[1720840558689,22.4528,139.47,139.44,5.0199]
[1720840559788,22.4528,139.47,139.45,5.0196]
[1720840559988,22.4528,139.47,139.43,1.38922929]
[1720840559989,22.4528,139.47,139.44,11.63]
[1720840560192,22.4528,139.47,139.46,5.0193]
[1720840560594,22.4528,139.47,139.45,5.0195]
[1720840562080,5.018,139.5,139.44,13.0636867]
[1720840562280,16.648,139.5,139.44,11.63]